Workbook

Sheet REMONTTIKUSTANNUKSET
B1: KEITTIÖREMONTIN KUSTANNUSTEN LASKENTATAULUKKO
B3: Luokka | C3: Tuotteet | D3: Määrä | E3: Arvioidut kustannukset | F3: Todelliset kustannukset | G3: Arvioidut kustannukset yhteensä | H3: Todelliset kulut yhteensä
B4: Kaapit | C4: Alakaapit: Moduulistandardi (määrä lineaarisesti jalkoina) | D4: 25 | E4: 5.00 € | G4: =Tiedot[[#This Row],[Määrä]]*Tiedot[[#This Row],[Arvioidut kustannukset]] -> 125 € | H4: =Tiedot[[#This Row],[Määrä]]*Tiedot[[#This Row],[Todelliset kustannukset]] -> 0 €
B5: Kaapit | C5: Yläkaapit: Moduulistandardi (määrä lineaarisesti jalkoina) | D5: 25 | E5: 3.50 € | G5: =Tiedot[[#This Row],[Määrä]]*Tiedot[[#This Row],[Arvioidut kustannukset]] -> 88 € | H5: =Tiedot[[#This Row],[Määrä]]*Tiedot[[#This Row],[Todelliset kustannukset]] -> 0 €
B6: Puhdistusvälineet | C6: Astianpesukone: Vakio | D6: 1 | E6: 250.00 € | G6: =Tiedot[[#This Row],[Määrä]]*Tiedot[[#This Row],[Arvioidut kustannukset]] -> 250 € | H6: =Tiedot[[#This Row],[Määrä]]*Tiedot[[#This Row],[Todelliset kustannukset]] -> 0 €
B7: Puhdistusvälineet | C7: Jätteet: Vakio | D7: 1 | E7: 175.00 € | G7: =Tiedot[[#This Row],[Määrä]]*Tiedot[[#This Row],[Arvioidut kustannukset]] -> 175 € | H7: =Tiedot[[#This Row],[Määrä]]*Tiedot[[#This Row],[Todelliset kustannukset]] -> 0 €
B8: Keittovälineet | C8: Alue: Liukustandardi | D8: 1 | E8: 375.00 € | G8: =Tiedot[[#This Row],[Määrä]]*Tiedot[[#This Row],[Arvioidut kustannukset]] -> 375 € | H8: =Tiedot[[#This Row],[Määrä]]*Tiedot[[#This Row],[Todelliset kustannukset]] -> 0 €
B9: Keittovälineet | C9: Mikroaaltouuni: Vakio | D9: 1 | E9: 300.00 € | G9: =Tiedot[[#This Row],[Määrä]]*Tiedot[[#This Row],[Arvioidut kustannukset]] -> 300 € | H9: =Tiedot[[#This Row],[Määrä]]*Tiedot[[#This Row],[Todelliset kustannukset]] -> 0 €
B10: Tiskit | C10: Kiinteä pinta (määrä lineaarijalkoina) | D10: 23 | E10: 10.00 € | G10: =Tiedot[[#This Row],[Määrä]]*Tiedot[[#This Row],[Arvioidut kustannukset]] -> 230 € | H10: =Tiedot[[#This Row],[Määrä]]*Tiedot[[#This Row],[Todelliset kustannukset]] -> 0 €
B11: Ovet | C11: Sisäpuoli: Solidcore-paneeli | D11: 1 | E11: 65.00 € | G11: =Tiedot[[#This Row],[Määrä]]*Tiedot[[#This Row],[Arvioidut kustannukset]] -> 65 € | H11: =Tiedot[[#This Row],[Määrä]]*Tiedot[[#This Row],[Todelliset kustannukset]] -> 0 €
B12: Lisäominaisuudet | C12: Lisäominaisuudet: Vakiomallinen heti lämmin vesi | D12: 1 | E12: 120.00 € | G12: =Tiedot[[#This Row],[Määrä]]*Tiedot[[#This Row],[Arvioidut kustannukset]] -> 120 € | H12: =Tiedot[[#This Row],[Määrä]]*Tiedot[[#This Row],[Todelliset kustannukset]] -> 0 €
B13: Lisäominaisuudet | C13: Lisäominaisuudet: Saippua-annostelija | D13: 1 | E13: 40.00 € | G13: =Tiedot[[#This Row],[Määrä]]*Tiedot[[#This Row],[Arvioidut kustannukset]] -> 40 € | H13: =Tiedot[[#This Row],[Määrä]]*Tiedot[[#This Row],[Todelliset kustannukset]] -> 0 €
B14: Hanat | C14: Hana: Vakiovipuhana | D14: 1 | E14: 130.00 € | G14: =Tiedot[[#This Row],[Määrä]]*Tiedot[[#This Row],[Arvioidut kustannukset]] -> 130 € | H14: =Tiedot[[#This Row],[Määrä]]*Tiedot[[#This Row],[Todelliset kustannukset]] -> 0 €
B15: Lattiapäällysteet | C15: Laminaatti (neliöjalkoina) | D15: 165 | E15: 3.50 € | G15: =Tiedot[[#This Row],[Määrä]]*Tiedot[[#This Row],[Arvioidut kustannukset]] -> 578 € | H15: =Tiedot[[#This Row],[Määrä]]*Tiedot[[#This Row],[Todelliset kustannukset]] -> 0 €
B16: Pyykinpesuvarusteet | C16: Pesukone: Vakio | D16: 1 | E16: 500.00 € | G16: =Tiedot[[#This Row],[Määrä]]*Tiedot[[#This Row],[Arvioidut kustannukset]] -> 500 € | H16: =Tiedot[[#This Row],[Määrä]]*Tiedot[[#This Row],[Todelliset kustannukset]] -> 0 €
B17: Pyykinpesuvarusteet | C17: Kuivain: Vakio | D17: 1 | E17: 375.00 € | G17: =Tiedot[[#This Row],[Määrä]]*Tiedot[[#This Row],[Arvioidut kustannukset]] -> 375 € | H17: =Tiedot[[#This Row],[Määrä]]*Tiedot[[#This Row],[Todelliset kustannukset]] -> 0 €
B18: Valaistus | C18: Valaistus: Syvennetty lieriö | D18: 4 | E18: 35.00 € | G18: =Tiedot[[#This Row],[Määrä]]*Tiedot[[#This Row],[Arvioidut kustannukset]] -> 140 € | H18: =Tiedot[[#This Row],[Määrä]]*Tiedot[[#This Row],[Todelliset kustannukset]] -> 0 €
B19: Jääkaapit | C19: Jääkaappi: Vapaasti seisova luksusmalli | D19: 1 | E19: 1,200.00 € | G19: =Tiedot[[#This Row],[Määrä]]*Tiedot[[#This Row],[Arvioidut kustannukset]] -> 1,200 € | H19: =Tiedot[[#This Row],[Määrä]]*Tiedot[[#This Row],[Todelliset kustannukset]] -> 0 €
B20: Altaat | C20: Kaksoiskulho ruostumatonta terästä, luksusmalli | D20: 1 | E20: 125.00 € | G20: =Tiedot[[#This Row],[Määrä]]*Tiedot[[#This Row],[Arvioidut kustannukset]] -> 125 € | H20: =Tiedot[[#This Row],[Määrä]]*Tiedot[[#This Row],[Todelliset kustannukset]] -> 0 €
B21: Tuuletus | C21: Huppuyksikkö: Vakioputket | D21: 1 | E21: 180.00 € | G21: =Tiedot[[#This Row],[Määrä]]*Tiedot[[#This Row],[Arvioidut kustannukset]] -> 180 € | H21: =Tiedot[[#This Row],[Määrä]]*Tiedot[[#This Row],[Todelliset kustannukset]] -> 0 €
B22: Seinät | C22: Seinäverhoilu (neliöjalkoina) | D22: 70 | E22: 2.00 € | G22: =Tiedot[[#This Row],[Määrä]]*Tiedot[[#This Row],[Arvioidut kustannukset]] -> 140 € | H22: =Tiedot[[#This Row],[Määrä]]*Tiedot[[#This Row],[Todelliset kustannukset]] -> 0 €
B23: Ikkunat | C23: Liu'utus | D23: 2 | E23: 120.00 € | G23: =Tiedot[[#This Row],[Määrä]]*Tiedot[[#This Row],[Arvioidut kustannukset]] -> 240 € | H23: =Tiedot[[#This Row],[Määrä]]*Tiedot[[#This Row],[Todelliset kustannukset]] -> 0 €
B24: Muut | G24: =Tiedot[[#This Row],[Määrä]]*Tiedot[[#This Row],[Arvioidut kustannukset]] -> 0 € | H24: =Tiedot[[#This Row],[Määrä]]*Tiedot[[#This Row],[Todelliset kustannukset]] -> 0 €
B25: Yhteensä | E25: =SUBTOTAL(109,Tiedot[Arvioidut kustannukset]) -> 4,014.00 € | F25: =SUBTOTAL(109,Tiedot[Todelliset kustannukset]) -> 0.00 € | G25: =SUBTOTAL(109,Tiedot[Arvioidut kustannukset yhteensä]) -> 5,375.00 € | H25: =SUBTOTAL(109,Tiedot[Todelliset kulut yhteensä]) -> 0.00 €
B26: Välisumma | G26: =SUBTOTAL(109,Tiedot[Arvioidut kustannukset yhteensä]) -> 5,375.00 € | H26: =SUBTOTAL(109,Tiedot[Todelliset kulut yhteensä]) -> 0.00 €
B27: Odottamattomat kustannukset - lisää 30 % | G27: =G26*0.3 -> 1,612.50 € | H27: =H26*0.3 -> 0.00 €
B28: Yhteensä | G28: =SUM(G26:G27) -> 6,987.50 € | H28: =SUM(H26:H27) -> 0.00 €
